[Event "*** Titled Tuesday 3|2 Blitz"]
[Site "Chess.com"]
[Date "2016.10.04"]
[Round "9"]
[White "Noukii"]
[Black "TomsKantans"]
[Result "1-0"]
[WhiteElo "2610"]
[BlackElo "2470"]
[TimeControl "180+2"]
[EndTime "12:52:27 PDT"]
[Termination "Noukii won by resignation"]

1. d4 {[%clk 0:03:01.9]} 1... Nf6 {[%clk 0:02:59.3]} 2. c4 {[%clk 0:02:58.7]}
2... g6 {[%clk 0:02:59]} 3. f3 {[%clk 0:02:57.3]} 3... c5 {[%clk 0:02:53.9]} 4.
d5 {[%clk 0:02:56.2]} 4... Bg7 {[%clk 0:02:54.6]} 5. e4 {[%clk 0:02:57.5]} 5...
d6 {[%clk 0:02:56.5]} 6. Nc3 {[%clk 0:02:55.3]} 6... O-O {[%clk 0:02:57.2]} 7.
Bg5 {[%clk 0:02:56.9]} 7... e6 {[%clk 0:02:54.2]} 8. Qd2 {[%clk 0:02:56.2]} 8...
Re8 {[%clk 0:02:54.1]} 9. Nge2 {[%clk 0:02:55.6]} 9... h6 {[%clk 0:02:52.1]} 10.
Be3 {[%clk 0:02:55.8]} 10... exd5 {[%clk 0:02:52.1]} 11. cxd5 {[%clk 0:02:57]}
11... a6 {[%clk 0:02:39.9]} 12. a4 {[%clk 0:02:57.1]} 12... Nbd7 {[%clk
0:02:38.9]} 13. Nc1 {[%clk 0:02:55.9]} 13... Ne5 {[%clk 0:02:37.5]} 14. Be2
{[%clk 0:02:57.3]} 14... g5 {[%clk 0:02:32.2]} 15. O-O {[%clk 0:02:58.1]} 15...
Bd7 {[%clk 0:02:28.1]} 16. b3 {[%clk 0:02:54.5]} 16... Rb8 {[%clk 0:02:24.5]}
17. Nd3 {[%clk 0:02:54.2]} 17... Nxd3 {[%clk 0:02:19.6]} 18. Bxd3 {[%clk
0:02:55.3]} 18... b5 {[%clk 0:02:21.5]} 19. axb5 {[%clk 0:02:56.2]} 19... axb5
{[%clk 0:02:23.4]} 20. Ra6 {[%clk 0:02:56.7]} 20... Qe7 {[%clk 0:02:18.6]} 21.
Bf2 {[%clk 0:02:48.5]} 21... Nh5 {[%clk 0:02:08.5]} 22. Rc1 {[%clk 0:02:24.3]}
22... Nf4 {[%clk 0:02:07.1]} 23. Bf1 {[%clk 0:02:25.8]} 23... h5 {[%clk
0:01:44]} 24. Be3 {[%clk 0:02:10.1]} 24... b4 {[%clk 0:01:24.3]} 25. Ne2 {[%clk
0:02:02.2]} 25... Bb5 {[%clk 0:01:24.9]} 26. Ra2 {[%clk 0:01:47.9]} 26... Bxe2
{[%clk 0:01:17.1]} 27. Bxe2 {[%clk 0:01:49.8]} 27... Nxe2+ {[%clk 0:01:03.2]}
28. Qxe2 {[%clk 0:01:51.7]} 28... f5 {[%clk 0:01:04.6]} 29. Rc4 {[%clk
0:01:51.2]} 29... g4 {[%clk 0:00:50.7]} 30. Bf2 {[%clk 0:01:43.1]} 30... gxf3
{[%clk 0:00:50]} 31. gxf3 {[%clk 0:01:45]} 31... Qg5+ {[%clk 0:00:44.8]} 32. Kh1
{[%clk 0:01:46.4]} 32... fxe4 {[%clk 0:00:40.6]} 33. Rxe4 {[%clk 0:01:20.9]}
33... Qg6 {[%clk 0:00:26.4]} 34. Bg3 {[%clk 0:00:59.3]} 34... Rxe4 {[%clk
0:00:25.2]} 35. Qxe4 {[%clk 0:00:58]} 35... Qxe4 {[%clk 0:00:17.5]} 36. fxe4
{[%clk 0:00:59.9]} 36... Bf8 {[%clk 0:00:14.1]} 37. Kg2 {[%clk 0:00:57.4]} 37...
Re8 {[%clk 0:00:14]} 38. Kf3 {[%clk 0:00:58.6]} 38... Re7 {[%clk 0:00:10.7]} 39.
Ra6 {[%clk 0:00:56.7]} 39... Rf7+ {[%clk 0:00:11.7]} 40. Ke2 {[%clk 0:00:58.2]}
40... Rf6 {[%clk 0:00:08.1]} 41. e5 {[%clk 0:00:38.8]} 41... Rf5 {[%clk
0:00:09.2]} 42. Ke3 {[%clk 0:00:40.5]} 42... dxe5 {[%clk 0:00:09]} 43. Ke4
{[%clk 0:00:42.4]} 43... Rf1 {[%clk 0:00:07.5]} 44. Bxe5 {[%clk 0:00:43.6]}
44... Re1+ {[%clk 0:00:05.9]} 45. Kf5 {[%clk 0:00:45.1]} 45... Rb1 {[%clk
0:00:05.5]} 46. Ra8 {[%clk 0:00:41.4]} 46... Kf7 {[%clk 0:00:05.9]} 47. Ra7+
{[%clk 0:00:42.7]} 47... Ke8 {[%clk 0:00:06.3]} 48. Ke6 {[%clk 0:00:43.6]} 1-0

[Event "*** Titled Tuesday 3|2 Blitz"]
[Site "Chess.com"]
[Date "2016.10.04"]
[Round "9"]
[White "Iball95"]
[Black "Lupul_Cenusiu"]
[Result "0-1"]
[WhiteElo "2496"]
[BlackElo "2388"]
[TimeControl "180+2"]
[EndTime "12:52:32 PDT"]
[Termination "Lupul_Cenusiu won by resignation"]

1. d4 {[%clk 0:03:01.9]} 1... Nf6 {[%clk 0:02:59.4]} 2. c4 {[%clk 0:03:03.3]}
2... g6 {[%clk 0:02:59.5]} 3. Nc3 {[%clk 0:03:04.4]} 3... Bg7 {[%clk 0:03:01.1]}
4. e4 {[%clk 0:03:05.7]} 4... O-O {[%clk 0:03:02.6]} 5. Nf3 {[%clk 0:03:07.3]}
5... d6 {[%clk 0:03:03.8]} 6. h3 {[%clk 0:03:08.9]} 6... c6 {[%clk 0:03:04.7]}
7. Bd3 {[%clk 0:03:07.1]} 7... Nbd7 {[%clk 0:03:04.9]} 8. O-O {[%clk 0:03:06.8]}
8... e5 {[%clk 0:03:05.5]} 9. d5 {[%clk 0:03:00.1]} 9... Nc5 {[%clk 0:03:01.3]}
10. Be3 {[%clk 0:03:01.3]} 10... a5 {[%clk 0:02:59.5]} 11. Nxe5 {[%clk
0:02:30.7]} 11... Nfxe4 {[%clk 0:02:50.2]} 12. Nxe4 {[%clk 0:02:17.5]} 12...
Nxe4 {[%clk 0:02:44.9]} 13. Bxe4 {[%clk 0:02:18.2]} 13... Bxe5 {[%clk
0:02:45.2]} 14. dxc6 {[%clk 0:02:18.9]} 14... bxc6 {[%clk 0:02:40.4]} 15. Rb1
{[%clk 0:02:07]} 15... Qc7 {[%clk 0:02:34.1]} 16. b3 {[%clk 0:02:07.2]} 16...
Re8 {[%clk 0:02:28.1]} 17. Qf3 {[%clk 0:02:04]} 17... Bd7 {[%clk 0:02:25.2]} 18.
Rfd1 {[%clk 0:02:01.8]} 18... f5 {[%clk 0:02:23.5]} 19. Bd3 {[%clk 0:02:02.4]}
19... Be6 {[%clk 0:02:20.6]} 20. Bf4 {[%clk 0:01:59.2]} 20... c5 {[%clk
0:02:05.3]} 21. Re1 {[%clk 0:01:52.8]} 21... Bf7 {[%clk 0:02:03.4]} 22. Re2
{[%clk 0:01:50.2]} 22... a4 {[%clk 0:01:40.4]} 23. bxa4 {[%clk 0:01:23.5]} 23...
Rxa4 {[%clk 0:01:34.6]} 24. Rb7 {[%clk 0:01:24.5]} 24... Qc8 {[%clk 0:01:25.3]}
25. Bh6 {[%clk 0:01:01.4]} 25... Bf6 {[%clk 0:01:12.6]} 26. Rxe8+ {[%clk
0:00:52.4]} 26... Qxe8 {[%clk 0:01:12.4]} 27. g4 {[%clk 0:00:53.2]} 27... Rxa2
{[%clk 0:01:04.7]} 28. gxf5 {[%clk 0:00:48.2]} 28... Bd4 {[%clk 0:00:38.1]} 29.
fxg6 {[%clk 0:00:27.5]} 29... Bxg6 {[%clk 0:00:39.2]} 30. Bxg6 {[%clk
0:00:17.4]} 30... Qxg6+ {[%clk 0:00:37.7]} 31. Qg4 {[%clk 0:00:18.8]} 31...
Qxg4+ {[%clk 0:00:37.2]} 32. hxg4 {[%clk 0:00:20.7]} 32... Rxf2 {[%clk
0:00:36.9]} 33. Kh1 {[%clk 0:00:22.2]} 33... Rb2 {[%clk 0:00:29.7]} 34. Rxb2
{[%clk 0:00:15.8]} 34... Bxb2 {[%clk 0:00:30.3]} 35. Kg2 {[%clk 0:00:17.7]}
35... Kf7 {[%clk 0:00:30.7]} 36. Kf3 {[%clk 0:00:18.5]} 36... Ke6 {[%clk
0:00:31.9]} 37. Ke4 {[%clk 0:00:19.6]} 37... Be5 {[%clk 0:00:32.2]} 38. Be3
{[%clk 0:00:20.7]} 38... Kf6 {[%clk 0:00:32]} 39. Bd2 {[%clk 0:00:21.9]} 39...
Ke6 {[%clk 0:00:32.3]} 40. Be3 {[%clk 0:00:23.4]} 40... Bh2 {[%clk 0:00:31]} 41.
Bd2 {[%clk 0:00:23.6]} 41... Bg3 {[%clk 0:00:24.4]} 42. Be3 {[%clk 0:00:24.2]}
42... Kd7 {[%clk 0:00:24.1]} 43. Kd5 {[%clk 0:00:23.1]} 43... Kc7 {[%clk
0:00:21.9]} 44. Bh6 {[%clk 0:00:22.5]} 44... Kb6 {[%clk 0:00:21.8]} 45. Bf8
{[%clk 0:00:23.4]} 45... Ka5 {[%clk 0:00:23.1]} 46. Bxd6 {[%clk 0:00:20.6]}
46... Bxd6 {[%clk 0:00:23]} 47. Kxd6 {[%clk 0:00:22.5]} 47... Kb4 {[%clk
0:00:24.3]} 48. g5 {[%clk 0:00:19.3]} 48... Kxc4 {[%clk 0:00:24.6]} 49. Ke6
{[%clk 0:00:21.2]} 49... Kd4 {[%clk 0:00:23.4]} 50. Kf7 {[%clk 0:00:23.1]} 50...
Ke5 {[%clk 0:00:23.3]} 51. Kg7 {[%clk 0:00:25]} 51... Kf5 {[%clk 0:00:24.5]} 0-1

[Event "*** Titled Tuesday 3|2 Blitz"]
[Site "Chess.com"]
[Date "2016.10.04"]
[Round "9"]
[White "LuckyTiger"]
[Black "OparinGrigoriy"]
[Result "1-0"]
[WhiteElo "2599"]
[BlackElo "2588"]
[TimeControl "180+2"]
[EndTime "12:52:44 PDT"]
[Termination "LuckyTiger won by resignation"]

1. e4 {[%clk 0:03:01.9]} 1... c5 {[%clk 0:03:00.6]} 2. c3 {[%clk 0:03:02.9]}
2... d5 {[%clk 0:03:01]} 3. exd5 {[%clk 0:03:04.2]} 3... Qxd5 {[%clk 0:03:02.9]}
4. d4 {[%clk 0:03:05.9]} 4... Nf6 {[%clk 0:03:03.7]} 5. Nf3 {[%clk 0:03:07.6]}
5... Bg4 {[%clk 0:03:05.4]} 6. Nbd2 {[%clk 0:03:02.9]} 6... e6 {[%clk
0:03:04.7]} 7. Qa4+ {[%clk 0:02:55.6]} 7... Nc6 {[%clk 0:03:00]} 8. Bc4 {[%clk
0:02:54]} 8... Qd7 {[%clk 0:02:57]} 9. Bb5 {[%clk 0:02:54.7]} 9... Bxf3 {[%clk
0:02:41]} 10. Nxf3 {[%clk 0:02:56.6]} 10... Rc8 {[%clk 0:02:28.4]} 11. Ne5
{[%clk 0:02:55.2]} 11... Qd5 {[%clk 0:02:22.6]} 12. O-O {[%clk 0:02:41.2]} 12...
cxd4 {[%clk 0:02:23.5]} 13. cxd4 {[%clk 0:02:35.5]} 13... Bd6 {[%clk 0:02:24.6]}
14. Bxc6+ {[%clk 0:02:06.4]} 14... bxc6 {[%clk 0:02:22.8]} 15. Qxa7 {[%clk
0:02:05.5]} 15... O-O {[%clk 0:02:22.9]} 16. Be3 {[%clk 0:01:59.1]} 16... Ra8
{[%clk 0:02:09.1]} 17. Qb6 {[%clk 0:01:58.8]} 17... Bxe5 {[%clk 0:01:57.6]} 18.
dxe5 {[%clk 0:02:00.7]} 18... Ng4 {[%clk 0:01:59.1]} 19. Bf4 {[%clk 0:01:49.5]}
19... Rxa2 {[%clk 0:01:33.2]} 20. Rxa2 {[%clk 0:01:48.3]} 20... Qxa2 {[%clk
0:01:35.1]} 21. h3 {[%clk 0:01:43.9]} 21... Qc4 {[%clk 0:01:29.5]} 22. g3 {[%clk
0:01:39.6]} 22... Nh6 {[%clk 0:01:16.6]} 23. Bxh6 {[%clk 0:01:40.7]} 23... gxh6
{[%clk 0:01:17.4]} 24. Qe3 {[%clk 0:01:42.3]} 24... Kg7 {[%clk 0:01:15.2]} 25.
Rc1 {[%clk 0:01:42.7]} 25... Qb5 {[%clk 0:01:07.8]} 26. Qf4 {[%clk 0:01:32.6]}
26... Kg8 {[%clk 0:00:51.8]} 27. Rc4 {[%clk 0:01:01.7]} 27... Rd8 {[%clk
0:00:41.3]} 28. Kg2 {[%clk 0:00:43.6]} 28... Rd3 {[%clk 0:00:24.3]} 29. Rb4
{[%clk 0:00:31.9]} 29... Qd5+ {[%clk 0:00:23.4]} 30. Kh2 {[%clk 0:00:33]} 30...
Qd8 {[%clk 0:00:21.1]} 31. Qxh6 {[%clk 0:00:32]} 31... Rd4 {[%clk 0:00:16.6]}
32. Rb3 {[%clk 0:00:29.1]} 32... Rd2 {[%clk 0:00:11.6]} 33. Rf3 {[%clk
0:00:24.8]} 33... Rd4 {[%clk 0:00:08.6]} 34. Rf6 {[%clk 0:00:23]} 34... Qf8
{[%clk 0:00:09.9]} 35. Qg5+ {[%clk 0:00:22.4]} 35... Qg7 {[%clk 0:00:11.2]} 36.
Qe3 {[%clk 0:00:22.1]} 36... Rb4 {[%clk 0:00:09.7]} 37. b3 {[%clk 0:00:22.1]}
37... Rb8 {[%clk 0:00:08.9]} 38. Rf4 {[%clk 0:00:21.9]} 38... h5 {[%clk
0:00:06.4]} 39. Rf6 {[%clk 0:00:17.6]} 39... Rb4 {[%clk 0:00:05]} 40. h4 {[%clk
0:00:11.3]} 40... Qg4 {[%clk 0:00:04.4]} 41. Rf4 {[%clk 0:00:05.5]} 41... Rxf4
{[%clk 0:00:04.5]} 42. Qxf4 {[%clk 0:00:06.9]} 42... Qxf4 {[%clk 0:00:04.2]} 43.
gxf4 {[%clk 0:00:08.8]} 43... Kg7 {[%clk 0:00:05.6]} 44. f5 {[%clk 0:00:10.4]}
44... exf5 {[%clk 0:00:06]} 45. Kg3 {[%clk 0:00:12.1]} 45... Kg6 {[%clk
0:00:04.8]} 46. Kf4 {[%clk 0:00:13.7]} 46... c5 {[%clk 0:00:06.4]} 47. f3 {[%clk
0:00:15.3]} 47... c4 {[%clk 0:00:06.4]} 48. bxc4 {[%clk 0:00:16.2]} 48... Kg7
{[%clk 0:00:08.3]} 49. Kxf5 {[%clk 0:00:17]} 49... Kf8 {[%clk 0:00:10.2]} 50.
Kf6 {[%clk 0:00:18.6]} 1-0

[Event "*** Titled Tuesday 3|2 Blitz"]
[Site "Chess.com"]
[Date "2016.10.04"]
[Round "9"]
[White "Kubas1010"]
[Black "Wolverine_master"]
[Result "1-0"]
[WhiteElo "2456"]
[BlackElo "2067"]
[TimeControl "180+2"]
[EndTime "12:52:49 PDT"]
[Termination "Kubas1010 won by resignation"]

1. d4 {[%clk 0:02:41.4]} 1... Nf6 {[%clk 0:03:00.2]} 2. c4 {[%clk 0:02:42.2]}
2... c5 {[%clk 0:03:01.4]} 3. d5 {[%clk 0:02:43.1]} 3... b5 {[%clk 0:03:02.5]}
4. cxb5 {[%clk 0:02:43.6]} 4... a6 {[%clk 0:03:04]} 5. bxa6 {[%clk 0:02:42.6]}
5... Bxa6 {[%clk 0:03:05.9]} 6. Nc3 {[%clk 0:02:44.1]} 6... d6 {[%clk
0:03:07.2]} 7. e4 {[%clk 0:02:44.1]} 7... Bxf1 {[%clk 0:03:09.1]} 8. Kxf1 {[%clk
0:02:45.7]} 8... g6 {[%clk 0:03:10.5]} 9. Nf3 {[%clk 0:02:47.3]} 9... Nbd7
{[%clk 0:03:10.6]} 10. g3 {[%clk 0:02:48.6]} 10... Bg7 {[%clk 0:03:12.1]} 11.
Kg2 {[%clk 0:02:50.2]} 11... O-O {[%clk 0:03:13.6]} 12. a4 {[%clk 0:02:51.8]}
12... Qb6 {[%clk 0:03:08.5]} 13. Qc2 {[%clk 0:02:46.9]} 13... Rfb8 {[%clk
0:03:04]} 14. Nb5 {[%clk 0:02:32.9]} 14... Ne8 {[%clk 0:02:57.2]} 15. Nd2 {[%clk
0:02:33.5]} 15... Nc7 {[%clk 0:02:51.1]} 16. Nc4 {[%clk 0:02:34.5]} 16... Qb7
{[%clk 0:02:50.2]} 17. Nxc7 {[%clk 0:02:17]} 17... Qxc7 {[%clk 0:02:48.9]} 18.
Bg5 {[%clk 0:02:15]} 18... Nb6 {[%clk 0:02:41.2]} 19. Nxb6 {[%clk 0:01:57.9]}
19... Qxb6 {[%clk 0:02:32.5]} 20. Rhb1 {[%clk 0:01:55.3]} 20... Ra7 {[%clk
0:02:22.9]} 21. Bd2 {[%clk 0:01:54.1]} 21... Qb3 {[%clk 0:02:22.3]} 22. Qxb3
{[%clk 0:01:46]} 22... Rxb3 {[%clk 0:02:24.2]} 23. Ra3 {[%clk 0:01:42.9]} 23...
Rxb2 {[%clk 0:02:00.2]} 24. Rxb2 {[%clk 0:01:43.7]} 24... Bxb2 {[%clk
0:02:02.1]} 25. Rb3 {[%clk 0:01:44.1]} 25... Bd4 {[%clk 0:02:02.6]} 26. Bh6
{[%clk 0:01:42.4]} 26... Ra8 {[%clk 0:01:49.4]} 27. a5 {[%clk 0:01:39.4]} 27...
Bg7 {[%clk 0:01:49.3]} 28. Bxg7 {[%clk 0:01:32.7]} 28... Kxg7 {[%clk 0:01:49.2]}
29. Rb5 {[%clk 0:01:31.1]} 29... f5 {[%clk 0:01:48.4]} 30. Kf3 {[%clk
0:01:31.8]} 30... Kf6 {[%clk 0:01:41.4]} 31. Ke3 {[%clk 0:01:32.7]} 31... fxe4
{[%clk 0:01:29.8]} 32. Kxe4 {[%clk 0:01:34]} 32... e6 {[%clk 0:01:27.8]} 33. f4
{[%clk 0:01:28.8]} 33... exd5+ {[%clk 0:00:56.6]} 34. Kxd5 {[%clk 0:01:29.7]}
34... Ra6 {[%clk 0:00:53.9]} 35. g4 {[%clk 0:01:24.8]} 35... h5 {[%clk
0:00:52.9]} 36. h3 {[%clk 0:01:25.5]} 36... hxg4 {[%clk 0:00:54.3]} 37. hxg4
{[%clk 0:01:26.4]} 37... Ke7 {[%clk 0:00:44.8]} 38. Rb7+ {[%clk 0:01:16.9]}
38... Kf6 {[%clk 0:00:37.7]} 39. Rb6 {[%clk 0:01:05.9]} 39... Rxa5 {[%clk
0:00:36.4]} 40. Rxd6+ {[%clk 0:01:06.3]} 40... Kf7 {[%clk 0:00:37.6]} 41. Rc6
{[%clk 0:00:55.2]} 41... Ra4 {[%clk 0:00:28.6]} 42. Ke5 {[%clk 0:00:55]} 42...
g5 {[%clk 0:00:24.5]} 43. Rc7+ {[%clk 0:00:40]} 43... Kg8 {[%clk 0:00:17]} 44.
f5 {[%clk 0:00:32.7]} 44... Rxg4 {[%clk 0:00:16.6]} 45. Kf6 {[%clk 0:00:31.9]}
45... Rf4 {[%clk 0:00:11]} 46. Kg6 {[%clk 0:00:31.6]} 46... Kf8 {[%clk
0:00:09.7]} 47. f6 {[%clk 0:00:32.6]} 47... Ke8 {[%clk 0:00:07.7]} 48. f7+
{[%clk 0:00:28.3]} 48... Kf8 {[%clk 0:00:05.2]} 49. Rc8+ {[%clk 0:00:28.2]}
49... Ke7 {[%clk 0:00:06.3]} 50. Rxc5 {[%clk 0:00:23.9]} 50... Rxf7 {[%clk
0:00:05.7]} 51. Rc7+ {[%clk 0:00:24.7]} 51... Ke6 {[%clk 0:00:03.9]} 52. Rxf7
{[%clk 0:00:25.2]} 52... g4 {[%clk 0:00:05.8]} 53. Rf4 {[%clk 0:00:25.6]} 53...
g3 {[%clk 0:00:06.9]} 1-0

[Event "*** Titled Tuesday 3|2 Blitz"]
[Site "Chess.com"]
[Date "2016.10.04"]
[Round "9"]
[White "GMNeiksans"]
[Black "Oleksandr_Bortnyk"]
[Result "0-1"]
[WhiteElo "2657"]
[BlackElo "2766"]
[TimeControl "180+2"]
[EndTime "12:53:36 PDT"]
[Termination "Oleksandr_Bortnyk won by resignation"]

1. e4 {[%clk 0:03:02]} 1... g6 {[%clk 0:02:57.5]} 2. d4 {[%clk 0:03:02.7]} 2...
Bg7 {[%clk 0:02:59]} 3. Nc3 {[%clk 0:03:03.9]} 3... d6 {[%clk 0:03:00.5]} 4. f4
{[%clk 0:03:05]} 4... a6 {[%clk 0:03:01.6]} 5. Nf3 {[%clk 0:03:05.6]} 5... Nc6
{[%clk 0:03:02.8]} 6. Be3 {[%clk 0:03:05.4]} 6... Nf6 {[%clk 0:03:02.2]} 7. Qd2
{[%clk 0:03:05]} 7... b5 {[%clk 0:02:55.4]} 8. a3 {[%clk 0:03:03.2]} 8... Bb7
{[%clk 0:02:51.2]} 9. Bd3 {[%clk 0:02:55.2]} 9... O-O {[%clk 0:02:47]} 10. h3
{[%clk 0:02:48.4]} 10... e5 {[%clk 0:02:37.9]} 11. fxe5 {[%clk 0:02:47.8]} 11...
dxe5 {[%clk 0:02:39.8]} 12. dxe5 {[%clk 0:02:39.2]} 12... Nh5 {[%clk 0:02:38.8]}
13. Bg5 {[%clk 0:02:16.6]} 13... Qd7 {[%clk 0:02:34.8]} 14. O-O-O {[%clk
0:02:06.3]} 14... Nxe5 {[%clk 0:02:25.4]} 15. Be2 {[%clk 0:01:34.9]} 15... Qxd2+
{[%clk 0:02:23.2]} 16. Rxd2 {[%clk 0:01:36]} 16... Ng3 {[%clk 0:02:24.5]} 17.
Re1 {[%clk 0:01:36.8]} 17... Nxe2+ {[%clk 0:02:23]} 18. Rexe2 {[%clk 0:01:37.3]}
18... Rfe8 {[%clk 0:02:15.4]} 19. Nd5 {[%clk 0:01:34]} 19... Nc4 {[%clk
0:02:13.2]} 20. Nf6+ {[%clk 0:01:20.1]} 20... Bxf6 {[%clk 0:02:13.8]} 21. Bxf6
{[%clk 0:01:21.5]} 21... Bxe4 {[%clk 0:02:07.6]} 22. Rd1 {[%clk 0:00:52.9]}
22... Bxf3 {[%clk 0:02:08.2]} 23. Rxe8+ {[%clk 0:00:53.1]} 23... Rxe8 {[%clk
0:02:10.1]} 24. gxf3 {[%clk 0:00:53.7]} 24... Nd6 {[%clk 0:02:11.3]} 25. b3
{[%clk 0:00:41.7]} 25... Kf8 {[%clk 0:02:04.7]} 26. Rd3 {[%clk 0:00:41.5]} 26...
Re6 {[%clk 0:02:02.8]} 27. Bg5 {[%clk 0:00:41.1]} 27... f6 {[%clk 0:01:58.4]}
28. Bf4 {[%clk 0:00:35.7]} 28... Ke7 {[%clk 0:01:58.7]} 29. h4 {[%clk
0:00:33.4]} 29... c6 {[%clk 0:01:55.5]} 30. a4 {[%clk 0:00:33.6]} 30... Nf5
{[%clk 0:01:54.6]} 31. h5 {[%clk 0:00:27.7]} 31... gxh5 {[%clk 0:01:54.6]} 32.
Rd2 {[%clk 0:00:21.4]} 32... h4 {[%clk 0:01:53.3]} 33. Rh2 {[%clk 0:00:22.3]}
33... Re1+ {[%clk 0:01:47.2]} 34. Kd2 {[%clk 0:00:23.3]} 34... Rf1 {[%clk
0:01:44.7]} 35. Ke2 {[%clk 0:00:24]} 35... Ra1 {[%clk 0:01:44.2]} 36. axb5
{[%clk 0:00:24.8]} 36... axb5 {[%clk 0:01:44.8]} 37. Bd2 {[%clk 0:00:24.8]}
37... Ke6 {[%clk 0:01:29.6]} 38. Bb4 {[%clk 0:00:23]} 38... Rc1 {[%clk
0:01:22.4]} 39. Kd2 {[%clk 0:00:22]} 39... Rg1 {[%clk 0:01:22.6]} 40. Ke2 {[%clk
0:00:19.3]} 40... Ke5 {[%clk 0:01:14.4]} 41. Bc5 {[%clk 0:00:19.8]} 41... Rc1
{[%clk 0:01:13.5]} 42. Kd2 {[%clk 0:00:20.7]} 42... Rf1 {[%clk 0:01:05.7]} 43.
Ke2 {[%clk 0:00:21.4]} 43... Ng3+ {[%clk 0:01:05.6]} 44. Ke3 {[%clk 0:00:18.8]}
44... Rd1 {[%clk 0:01:03.9]} 45. Rh3 {[%clk 0:00:17]} 45... Re1+ {[%clk
0:00:59]} 46. Kd3 {[%clk 0:00:17.4]} 46... Rd1+ {[%clk 0:00:54.9]} 47. Ke3
{[%clk 0:00:15.4]} 47... h5 {[%clk 0:00:55.9]} 48. Bb6 {[%clk 0:00:15.3]} 48...
Kd6 {[%clk 0:00:51.4]} 49. Ba7 {[%clk 0:00:15.7]} 49... Kc7 {[%clk 0:00:50.2]}
50. Bc5 {[%clk 0:00:16.4]} 50... Rd5 {[%clk 0:00:50.1]} 51. b4 {[%clk
0:00:14.3]} 51... Rd1 {[%clk 0:00:49.7]} 52. Kf4 {[%clk 0:00:13]} 52... Rh1
{[%clk 0:00:44.3]} 53. Rxh1 {[%clk 0:00:13.4]} 53... Nxh1 {[%clk 0:00:46.2]} 54.
Bg1 {[%clk 0:00:07.8]} 54... Ng3 {[%clk 0:00:46.3]} 55. Bf2 {[%clk 0:00:08.1]}
55... Kd6 {[%clk 0:00:26]} 56. Ke3 {[%clk 0:00:06.1]} 56... Kd5 {[%clk
0:00:22.8]} 57. Kd3 {[%clk 0:00:07]} 57... Nf5 {[%clk 0:00:23.9]} 58. Bg1 {[%clk
0:00:05]} 58... h3 {[%clk 0:00:25.2]} 59. Bh2 {[%clk 0:00:06.2]} 59... Nd4
{[%clk 0:00:25.9]} 60. Ke3 {[%clk 0:00:05.9]} 60... Nxc2+ {[%clk 0:00:27]} 61.
Kf4 {[%clk 0:00:07.3]} 61... Nxb4 {[%clk 0:00:28.3]} 62. Kf5 {[%clk 0:00:07.9]}
62... Nd3 {[%clk 0:00:29.5]} 63. Kxf6 {[%clk 0:00:09.2]} 63... b4 {[%clk
0:00:31.1]} 0-1

[Event "*** Titled Tuesday 3|2 Blitz"]
[Site "Chess.com"]
[Date "2016.10.04"]
[Round "9"]
[White "Tarlev_Konstantin"]
[Black "GMHess"]
[Result "1-0"]
[WhiteElo "2574"]
[BlackElo "2577"]
[TimeControl "180+2"]
[EndTime "12:53:37 PDT"]
[Termination "Tarlev_Konstantin won by resignation"]

1. e4 {[%clk 0:03:02]} 1... e5 {[%clk 0:02:59.6]} 2. Nf3 {[%clk 0:03:03]} 2...
Nc6 {[%clk 0:03:01]} 3. Bb5 {[%clk 0:03:04.2]} 3... Nf6 {[%clk 0:03:01.8]} 4. d3
{[%clk 0:03:04.8]} 4... d6 {[%clk 0:03:03]} 5. c3 {[%clk 0:03:03]} 5... a6
{[%clk 0:03:02.2]} 6. Ba4 {[%clk 0:03:02.5]} 6... Bd7 {[%clk 0:02:55.9]} 7. O-O
{[%clk 0:03:01.9]} 7... g6 {[%clk 0:02:56.1]} 8. Re1 {[%clk 0:02:59.8]} 8... Bg7
{[%clk 0:02:57.5]} 9. Nbd2 {[%clk 0:02:49.6]} 9... O-O {[%clk 0:02:58.7]} 10.
Nf1 {[%clk 0:02:51]} 10... Re8 {[%clk 0:02:53.5]} 11. Ng3 {[%clk 0:02:48.5]}
11... b5 {[%clk 0:02:45.7]} 12. Bc2 {[%clk 0:02:47.8]} 12... Qb8 {[%clk
0:02:39.1]} 13. d4 {[%clk 0:02:48.8]} 13... Bg4 {[%clk 0:02:32.1]} 14. d5 {[%clk
0:02:48.4]} 14... Na5 {[%clk 0:02:30.6]} 15. h3 {[%clk 0:02:49.6]} 15... Bd7
{[%clk 0:02:21.7]} 16. b3 {[%clk 0:01:37]} 16... c6 {[%clk 0:02:16.6]} 17. dxc6
{[%clk 0:01:28.7]} 17... Bxc6 {[%clk 0:02:18.5]} 18. Bg5 {[%clk 0:01:24.7]}
18... Nb7 {[%clk 0:02:06.1]} 19. b4 {[%clk 0:01:24.1]} 19... a5 {[%clk
0:02:05.5]} 20. Bxf6 {[%clk 0:01:23.5]} 20... Bxf6 {[%clk 0:02:05.9]} 21. Bb3
{[%clk 0:01:25.2]} 21... axb4 {[%clk 0:01:59.2]} 22. cxb4 {[%clk 0:01:26.5]}
22... Nd8 {[%clk 0:02:00.3]} 23. Nh2 {[%clk 0:01:15]} 23... Ne6 {[%clk
0:01:57.5]} 24. Ng4 {[%clk 0:01:15]} 24... Bg7 {[%clk 0:01:57.8]} 25. Bxe6
{[%clk 0:01:15.3]} 25... fxe6 {[%clk 0:01:56]} 26. Qb3 {[%clk 0:01:10.7]} 26...
Ra4 {[%clk 0:01:45.8]} 27. Rad1 {[%clk 0:01:08.9]} 27... h5 {[%clk 0:01:17.4]}
28. Nh2 {[%clk 0:01:06.8]} 28... Bf8 {[%clk 0:01:02]} 29. Nf3 {[%clk 0:01:07.7]}
29... Qa7 {[%clk 0:00:53.2]} 30. Rd2 {[%clk 0:01:01.8]} 30... Ra3 {[%clk
0:00:44.9]} 31. Qc2 {[%clk 0:01:00.8]} 31... Rc8 {[%clk 0:00:36.4]} 32. Qd1
{[%clk 0:01:01.8]} 32... Rxa2 {[%clk 0:00:29.7]} 33. Rxa2 {[%clk 0:01:00.6]}
33... Qxa2 {[%clk 0:00:31.6]} 34. Re2 {[%clk 0:00:50.6]} 34... Qa4 {[%clk
0:00:29.1]} 35. Qc1 {[%clk 0:00:45.2]} 35... Qa7 {[%clk 0:00:12]} 36. Rc2 {[%clk
0:00:31.4]} 36... Qb7 {[%clk 0:00:12.9]} 37. Qg5 {[%clk 0:00:31.4]} 37... Be8
{[%clk 0:00:12.4]} 38. Rxc8 {[%clk 0:00:29.9]} 38... Qxc8 {[%clk 0:00:14.3]} 39.
Nxh5 {[%clk 0:00:31.4]} 39... Bg7 {[%clk 0:00:10.4]} 40. Nxg7 {[%clk 0:00:31.9]}
40... Kxg7 {[%clk 0:00:12.3]} 41. Qe7+ {[%clk 0:00:33.5]} 41... Bf7 {[%clk
0:00:13.4]} 42. Qxd6 {[%clk 0:00:23.6]} 42... Qc1+ {[%clk 0:00:13.8]} 43. Kh2
{[%clk 0:00:25.3]} 43... Qf4+ {[%clk 0:00:15.2]} 44. Kh1 {[%clk 0:00:27]} 44...
Qxe4 {[%clk 0:00:14.4]} 45. Nxe5 {[%clk 0:00:25.8]} 45... Qf4 {[%clk 0:00:08.3]}
46. Nxf7 {[%clk 0:00:20.9]} 46... Qc1+ {[%clk 0:00:09.4]} 47. Kh2 {[%clk
0:00:21.8]} 47... Kxf7 {[%clk 0:00:11.3]} 48. Qd7+ {[%clk 0:00:22.1]} 48... Kf6
{[%clk 0:00:10.3]} 49. Qxb5 {[%clk 0:00:23.1]} 49... Qf4+ {[%clk 0:00:11]} 50.
Kg1 {[%clk 0:00:24.8]} 50... Qc1+ {[%clk 0:00:12.9]} 51. Qf1 {[%clk 0:00:26.4]}
51... Qb2 {[%clk 0:00:13.6]} 52. b5 {[%clk 0:00:27.3]} 52... e5 {[%clk
0:00:13.5]} 53. g3 {[%clk 0:00:28.8]} 53... e4 {[%clk 0:00:14.3]} 54. Qc4 {[%clk
0:00:29.9]} 54... Ke5 {[%clk 0:00:11.8]} 55. Qc5+ {[%clk 0:00:29.8]} 55... Kf6
{[%clk 0:00:10.9]} 56. Qd6+ {[%clk 0:00:31]} 56... Kg7 {[%clk 0:00:08.7]} 57. b6
{[%clk 0:00:30.7]} 57... Kh7 {[%clk 0:00:07.5]} 58. Qc7+ {[%clk 0:00:30.7]}
58... Kh6 {[%clk 0:00:08.6]} 59. b7 {[%clk 0:00:32]} 59... e3 {[%clk 0:00:10.1]}
60. Qf4+ {[%clk 0:00:30.2]} 60... Kg7 {[%clk 0:00:08.6]} 61. b8=Q {[%clk
0:00:24.2]} 61... exf2+ {[%clk 0:00:09.7]} 62. Kf1 {[%clk 0:00:25.6]} 62... Qa1+
{[%clk 0:00:06.3]} 63. Kxf2 {[%clk 0:00:27]} 63... Qa2+ {[%clk 0:00:06.5]} 64.
Kg1 {[%clk 0:00:25.6]} 1-0